bitfinex/quotes_SOLUSD_20250622
["timestamp","ask_amount","ask_price","bid_price","bid_amount"]
[1750609215722,39.82,128.99,128.96,19.30623412]
[1750609216521,85.80623412,128.99,128.94,19.30623412]
[1750609216705,85.80623412,128.99,128.95,19.30623412]
[1750609216910,85.80623412,128.99,128.91,18.64964886]
[1750609216911,33.82,128.99,128.97,19.30623412]
[1750609217210,31.98,128.98,128.95,19.30623412]
[1750609217410,31.98,128.98,128.96,19.30623412]
[1750609220018,32.66,128.98,128.95,19.30623412]
[1750609221321,32.66,128.98,128.94,19.30623412]
[1750609222428,31.98,128.98,128.96,19.30623412]
[1750609222634,148.1,129.03,128.98,0.68]
[1750609222833,31.98,129.02,129.01,19.30623412]
[1750609223041,52.01623412,129.02,128.95,0.68]
[1750609223211,26.0,128.99,128.95,19.30623412]
[1750609223409,26.0,128.99,128.93,19.32964886]
[1750609223410,31.96,128.98,128.93,18.64964886]
[1750609223719,31.96,129.01,128.98,0.68]
[1750609223909,31.96,129.01,129.0,19.30623412]
[1750609225323,31.96,129.02,129.0,19.30623412]
[1750609225527,31.96,129.02,129.01,19.30623412]
[1750609225839,31.96,129.02,128.96,37.95588298]
[1750609226036,31.96,129.02,129.01,19.30623412]
[1750609227936,33.82,129.03,128.97,0.68]
[1750609228240,65.78,129.03,129.01,19.30623412]
[1750609228420,65.78,129.03,129.0,19.30623412]
[1750609228809,65.78,129.03,129.01,19.30623412]
[1750609229025,66.51,129.03,128.99,19.30623412]
[1750609229232,0.73,129.02,128.98,19.30623412]
[1750609229435,31.94,129.01,128.98,19.30623412]
[1750609229611,31.94,129.01,128.95,20.24704886]
[1750609229805,31.94,129.01,129.0,19.30623412]
[1750609230222,26.0,129.02,129.0,19.30623412]
[1750609230423,57.94,129.02,129.01,19.30623412]
[1750609230622,3.72992327,129.03,129.01,19.30623412]
[1750609230942,31.94,129.02,129.01,19.30623412]
[1750609231313,31.94,129.02,129.0,19.30623412]
[1750609232336,31.94,129.02,129.01,19.98623412]
[1750609232513,3.72992327,129.03,129.01,19.98623412]
[1750609232721,3.72992327,129.03,129.02,19.98623412]
[1750609232928,3.72992327,129.03,129.02,38.63588298]
[1750609233838,33.76,129.08,129.03,18.64964886]
[1750609234041,7.76,129.08,129.07,19.30623412]
[1750609234550,7.76,129.08,129.07,19.98623412]
[1750609234860,31.92,129.15,129.1,18.64964886]
[1750609235137,31.92,129.15,129.14,19.30623412]
[1750609235343,31.92,129.15,129.11,0.68]
[1750609235513,31.92,129.15,129.12,19.30623412]
[1750609235716,26.0,129.13,129.1,19.30623412]
[1750609235930,51.95623412,129.12,129.07,19.30623412]
[1750609236137,31.92,129.12,129.09,19.30623412]
[1750609236524,31.92,129.12,129.05,0.68]
[1750609236848,31.92,129.12,129.08,19.30623412]
[1750609237144,31.92,129.15,129.11,19.98623412]
[1750609237346,7.76,129.16,129.14,19.30623412]
[1750609237653,7.76,129.16,129.15,38.63588298]
[1750609237816,7.76,129.16,129.15,19.98623412]
[1750609238017,7.76,129.16,129.12,19.30623412]
[1750609238018,7.76,129.16,129.13,18.64964886]
[1750609238334,39.66,129.16,129.15,19.30623412]
[1750609238922,7.76,129.16,129.15,19.30623412]
[1750609239126,7.76,129.16,129.15,19.98623412]
[1750609239320,7.76,129.16,129.15,38.63588298]
[1750609239941,22.53365396,129.21,129.16,18.64964886]
[1750609240121,31.9,129.2,129.19,19.30623412]
[1750609240315,31.9,129.2,129.18,19.30623412]
[1750609240641,31.9,129.2,129.17,0.68]
[1750609240642,31.9,129.2,129.19,19.30623412]
[1750609240820,22.53365396,129.21,129.19,19.30623412]
[1750609241015,54.43365396,129.21,129.2,19.30623412]
[1750609241522,54.43365396,129.21,129.19,19.30623412]
[1750609241726,54.43365396,129.21,129.18,19.30623412]
[1750609241939,26.0,129.19,129.14,18.64964886]
[1750609242225,54.43365396,129.21,129.17,18.64964886]
[1750609242226,48.53365396,129.21,129.17,18.64964886]
[1750609242559,48.53365396,129.21,129.11,33.6273]
[1750609242560,31.9,129.2,129.19,19.30623412]
[1750609243058,31.9,129.2,129.19,37.95588298]
[1750609243221,26.0,129.22,129.19,38.63588298]
[1750609243425,7.76,129.23,129.21,0.68]
[1750609243623,7.76,129.27,129.23,18.64964886]
[1750609243827,31.88,129.26,129.21,0.68]
[1750609244042,31.88,129.26,129.21,23.161819]
[1750609244043,19.30623412,129.25,129.21,23.161819]
[1750609244216,19.30623412,129.24,129.2,19.30623412]
[1750609244423,31.88,129.23,129.19,19.30623412]
[1750609244623,31.88,129.23,129.2,19.30623412]
[1750609245324,31.88,129.23,129.22,19.30623412]
[1750609246255,31.88,129.23,129.2,19.32964886]
[1750609246441,31.88,129.23,129.21,19.30623412]
[1750609246630,31.88,129.25,129.22,19.30623412]
[1750609246947,31.88,129.25,129.23,18.64964886]
[1750609247267,39.64,129.27,129.23,19.32964886]
[1750609247553,39.64,129.27,129.24,19.30623412]
[1750609248128,98.77693412,129.29,129.2,49.1107212]
[1750609248129,78.88,129.29,129.25,0.68]
[1750609248328,78.88,129.29,129.26,19.30623412]
[1750609248628,78.88,129.29,129.22,19.32964886]
[1750609248832,19.30623412,129.27,129.2,29.80448708]
[1750609249032,19.30623412,129.24,129.2,23.1107212]
[1750609249347,31.86,129.23,129.19,19.30623412]
[1750609249844,31.86,129.23,129.18,18.64964886]
[1750609249845,31.86,129.23,129.2,19.30623412]
[1750609250559,31.86,129.23,129.22,19.30623412]
[1750609251137,7.74,129.24,129.22,19.30623412]
[1750609251450,7.74,129.24,129.23,19.30623412]
[1750609251653,7.74,129.24,129.23,37.95588298]
[1750609251824,7.74,129.24,129.23,38.63588298]
[1750609252031,47.0,129.29,129.25,0.68]
[1750609252237,78.86,129.29,129.26,19.30623412]
[1750609252455,78.86,129.29,129.25,0.68]
[1750609252626,98.16623412,129.29,129.25,19.30623412]
[1750609252833,98.16623412,129.29,129.24,19.30623412]
[1750609252834,78.86,129.29,129.24,19.30623412]
[1750609253029,19.30623412,129.27,129.23,19.30623412]
[1750609253337,51.16623412,129.26,129.2,22.45867556]
[1750609253545,26.0,129.27,129.22,37.95588298]
[1750609253849,26.0,129.27,129.2,22.45867556]
[1750609253850,31.86,129.26,129.23,19.30623412]
[1750609254643,31.86,129.26,129.2,18.64964886]
[1750609254843,31.86,129.26,129.25,19.30623412]
[1750609255152,73.0,129.29,129.25,19.30623412]
[1750609255351,73.0,129.29,129.27,19.30623412]
[1750609255352,47.0,129.29,129.27,19.30623412]
[1750609255562,12.31292646,129.32,129.29,18.64964886]
[1750609255745,65.6,129.33,129.3,19.30623412]
[1750609256054,31.84,129.32,129.3,19.30623412]
[1750609257453,31.84,129.32,129.25,27.16814886]
[1750609257633,31.84,129.32,129.3,19.30623412]
[1750609259557,31.84,129.32,129.25,27.16814886]
[1750609259760,31.84,129.32,129.3,19.30623412]
[1750609260743,31.84,129.32,129.29,19.30623412]
[1750609261161,7.74,129.33,129.31,19.30623412]
[1750609261368,4.0822285,129.38,129.32,38.64588298]
[1750609261369,9.4160285,129.38,129.32,38.64588298]
[1750609261669,26.0,129.34,129.26,0.69]
[1750609261961,19.30623412,129.28,129.21,31.239111]
[1750609262140,19.30623412,129.26,129.21,42.55934512]
[1750609262343,19.30623412,129.25,129.2,19.99623412]
[1750609262551,19.30623412,129.22,129.17,19.30623412]
[1750609262758,39.56,129.21,129.19,19.30623412]
[1750609262984,39.56,129.21,129.17,0.69]
[1750609262985,31.84,129.2,129.17,19.30623412]
[1750609263170,31.84,129.2,129.18,19.30623412]
[1750609263848,31.84,129.2,129.17,19.30623412]
[1750609264246,7.72,129.21,129.19,38.64588298]
[1750609264444,7.72,129.21,129.2,19.30623412]
[1750609264763,7.72,129.21,129.2,38.64588298]
[1750609267443,45.30623412,129.26,129.2,38.64588298]
[1750609267444,31.84,129.25,129.21,18.64964886]
[1750609267638,31.84,129.25,129.24,19.30623412]
[1750609268842,26.0,129.28,129.24,19.30623412]
[1750609269146,31.84,129.26,129.23,18.64964886]
[1750609269454,31.84,129.26,129.21,6.6306]
[1750609269455,39.56,129.28,129.25,38.64588298]
[1750609269651,7.72,129.28,129.27,19.30623412]
[1750609270964,7.72,129.28,129.24,0.69]
[1750609271264,7.72,129.28,129.27,19.30623412]
[1750609272481,7.72,129.28,129.23,18.64964886]
[1750609272767,7.72,129.28,129.25,19.30623412]
[1750609272951,45.30623412,129.26,129.21,19.30623412]
[1750609273268,45.30623412,129.22,129.18,19.30623412]
[1750609273447,31.82,129.21,129.18,19.30623412]
[1750609273648,31.82,129.21,129.17,18.64964886]
[1750609273843,31.82,129.21,129.19,19.30623412]
[1750609274041,31.82,129.21,129.2,19.30623412]
[1750609274369,7.72,129.22,129.2,19.99623412]
[1750609274565,7.72,129.22,129.21,38.64588298]
[1750609275063,31.82,129.26,129.22,18.64964886]
[1750609275261,39.54,129.28,129.25,19.30623412]
[1750609275458,26.0,129.3,129.26,19.30623412]
[1750609275667,31.82,129.28,129.26,19.30623412]
[1750609276467,31.82,129.28,129.27,19.30623412]
[1750609276673,31.82,129.28,129.26,19.30623412]
[1750609277477,31.82,129.28,129.22,18.64964886]
[1750609277641,31.82,129.28,129.27,19.30623412]
[1750609277850,31.82,129.28,129.22,19.33964886]
[1750609278147,31.82,129.28,129.27,19.30623412]
[1750609278470,31.82,129.3,129.27,19.30623412]
[1750609278648,31.82,129.3,129.28,19.30623412]
[1750609278956,31.82,129.3,129.24,0.69]
[1750609278957,31.82,129.3,129.27,19.30623412]
[1750609279462,31.82,129.3,129.28,19.30623412]
[1750609279665,31.82,129.3,129.29,19.30623412]
[1750609280075,39.54,129.31,129.29,19.30623412]
[1750609280581,39.54,129.31,129.3,19.30623412]
[1750609280868,7.72,129.31,129.3,38.64588298]
[1750609281065,31.82,129.34,129.3,19.99623412]
[1750609281251,31.82,129.34,129.31,19.30623412]
[1750609281648,31.82,129.34,129.32,19.30623412]
[1750609281865,51.12623412,129.34,129.27,0.69]
[1750609282063,19.30623412,129.32,129.27,19.30623412]
[1750609282263,31.82,129.31,129.29,19.30623412]
[1750609282571,31.82,129.31,129.26,19.37964886]
[1750609282772,31.82,129.31,129.27,19.30623412]
[1750609282955,31.82,129.31,129.28,19.30623412]
[1750609283151,31.82,129.31,129.29,19.30623412]
[1750609283968,31.82,129.31,129.3,19.30623412]
[1750609284164,31.82,129.31,129.29,19.30623412]
[1750609284575,31.82,129.31,129.28,18.64964886]
[1750609284776,31.82,129.31,129.3,19.30623412]
[1750609286351,31.82,129.31,129.25,26.0]
[1750609286555,31.82,129.31,129.27,19.30623412]
[1750609286973,31.82,129.31,129.28,19.30623412]
[1750609287363,31.82,129.31,129.29,19.30623412]
[1750609287778,31.82,129.31,129.26,18.64964886]
[1750609287977,31.82,129.31,129.29,19.30623412]
[1750609288170,31.82,129.31,129.28,19.30623412]
[1750609288480,32.5,129.31,129.27,19.30623412]
[1750609288660,51.80623412,129.31,129.27,19.30623412]
[1750609288983,32.5,129.31,129.25,26.73]
[1750609289178,32.5,129.31,129.27,19.30623412]
[1750609289791,31.82,129.31,129.28,19.30623412]
[1750609289969,31.82,129.31,129.25,26.73]
[1750609290284,27.00623412,129.3,129.25,19.30623412]
[1750609290577,19.30623412,129.29,129.25,19.30623412]
[1750609290793,31.8,129.28,129.25,19.30623412]
[1750609291083,19.30623412,129.26,129.22,19.30623412]
[1750609291381,19.30623412,129.24,129.2,19.30623412]
[1750609291566,19.30623412,129.24,129.16,6.2960824]
[1750609291567,27.00623412,129.24,129.16,6.2960824]
[1750609291766,27.00623412,129.24,129.17,18.64964886]
[1750609291968,27.00623412,129.24,129.19,19.30623412]
[1750609292183,27.00623412,129.24,129.21,19.30623412]
[1750609292184,7.7,129.24,129.21,19.30623412]
[1750609292389,7.7,129.24,129.23,37.95588298]
[1750609292590,7.7,129.24,129.23,19.30623412]
[1750609293484,7.7,129.24,129.22,19.30623412]
[1750609293690,7.7,129.24,129.21,19.30623412]
[1750609293894,31.8,129.23,129.21,19.30623412]
[1750609294095,31.8,129.23,129.17,0.73]
[1750609294294,31.8,129.23,129.22,19.30623412]
[1750609294674,31.8,129.23,129.21,19.30623412]
[1750609294873,31.8,129.23,129.19,19.30623412]
[1750609295123,31.8,129.23,129.2,19.30623412]
[1750609295495,31.8,129.23,129.21,19.30623412]
[1750609296912,7.7,129.24,129.22,19.30623412]
[1750609297212,7.7,129.24,129.23,19.30623412]
[1750609297388,31.8,129.27,129.24,19.37964886]
[1750609297592,39.5,129.29,129.26,19.30623412]
[1750609297792,39.5,129.29,129.25,0.73]
[1750609298027,39.5,129.29,129.28,19.30623412]
[1750609298179,7.7,129.29,129.28,19.30623412]
[1750609298579,7.7,129.29,129.24,18.64964886]
[1750609298801,7.7,129.29,129.28,19.30623412]
[1750609299727,19.30623412,129.34,129.3,0.73]
[1750609299728,7.7,129.34,129.3,0.73]
[1750609299896,31.8,129.33,129.3,0.73]
[1750609300101,31.8,129.33,129.31,19.30623412]
[1750609300621,31.8,129.33,129.28,26.0]
[1750609300913,31.8,129.33,129.3,19.30623412]
[1750609301280,7.7,129.34,129.31,19.30623412]
[1750609301481,31.8,129.33,129.32,19.30623412]
[1750609301818,31.8,129.33,129.31,19.30623412]
[1750609302134,31.8,129.33,129.3,19.30623412]
[1750609302412,19.30623412,129.32,129.26,18.64964886]
[1750609302624,0.68,129.3,129.24,18.64964886]
[1750609302794,51.10623412,129.29,129.24,19.30623412]
[1750609302990,7.7,129.28,129.26,19.30623412]
[1750609303213,7.7,129.28,129.27,19.30623412]
[1750609304079,7.7,129.28,129.26,19.30623412]
[1750609305333,7.7,129.28,129.27,19.30623412]
[1750609306908,7.7,129.28,129.27,38.68588298]
[1750609307424,31.8,129.31,129.27,38.68588298]
[1750609307602,31.8,129.31,129.29,19.30623412]
[1750609308710,31.8,129.31,129.28,19.30623412]
[1750609308911,31.8,129.31,129.29,19.30623412]
[1750609309245,31.8,129.31,129.27,19.30623412]
[1750609309439,31.8,129.31,129.22,6.3699]
[1750609309440,32.48,129.31,129.22,6.3699]
[1750609309731,31.8,129.31,129.27,19.30623412]
[1750609309933,31.8,129.31,129.28,19.30623412]
[1750609310236,19.30623412,129.3,129.26,19.30623412]
[1750609310604,19.30623412,129.3,129.25,19.30623412]
[1750609310821,19.98623412,129.29,129.25,19.30623412]
[1750609311036,31.8,129.28,129.24,19.30623412]
[1750609311218,7.7,129.27,129.24,19.30623412]
[1750609311414,7.7,129.27,129.25,19.30623412]
[1750609312642,7.7,129.27,129.23,19.30623412]
[1750609313009,27.00623412,129.27,129.23,19.30623412]
[1750609313232,7.7,129.27,129.23,19.30623412]
[1750609313414,27.00623412,129.27,129.23,19.30623412]
[1750609314441,27.00623412,129.27,129.2,20.22434886]
[1750609314442,31.8,129.26,129.22,18.64964886]
[1750609314610,31.8,129.27,129.25,19.30623412]
[1750609314806,31.8,129.27,129.26,19.30623412]
[1750609315623,7.7,129.34,129.28,18.64964886]
[1750609315944,31.8,129.33,129.28,18.64964886]
[1750609316150,31.8,129.33,129.31,19.30623412]
[1750609316526,31.8,129.33,129.27,1.564]
[1750609316733,19.30623412,129.31,129.27,19.30623412]
[1750609316927,31.8,129.3,129.28,19.30623412]
[1750609317819,31.8,129.3,129.29,19.30623412]
[1750609318137,31.8,129.32,129.29,19.30623412]
[1750609318457,31.8,129.32,129.3,19.30623412]
[1750609319116,31.8,129.32,129.29,19.30623412]
[1750609319322,31.8,129.32,129.3,19.30623412]
[1750609319756,31.8,129.32,129.31,19.30623412]
[1750609320352,7.7,129.33,129.31,19.30623412]
[1750609320576,27.00623412,129.33,129.29,19.30623412]
[1750609320769,27.00623412,129.33,129.25,18.64964886]
[1750609320770,19.30623412,129.31,129.25,18.64964886]
[1750609320937,31.8,129.3,129.27,19.30623412]
[1750609321266,31.8,129.3,129.26,19.30623412]
[1750609321575,31.8,129.3,129.27,19.30623412]
[1750609321745,31.8,129.3,129.28,19.30623412]
[1750609322448,31.8,129.32,129.29,19.30623412]
[1750609322776,31.8,129.32,129.25,26.0]
[1750609322777,31.8,129.32,129.31,19.30623412]
[1750609322945,7.7,129.33,129.31,19.30623412]
[1750609323141,7.7,129.33,129.32,19.30623412]
[1750609323777,31.78,129.36,129.32,37.95588298]
[1750609324070,31.78,129.36,129.32,19.30623412]
[1750609324281,31.78,129.36,129.3,20.20724886]
[1750609324282,31.78,129.36,129.33,19.30623412]
[1750609324675,19.30623412,129.36,129.31,19.30623412]
[1750609324848,19.30623412,129.34,129.3,19.30623412]
[1750609325043,19.30623412,129.31,129.25,0.68]
[1750609325253,31.8,129.3,129.29,19.30623412]
[1750609325471,7.7,129.31,129.29,19.30623412]
[1750609326285,7.7,129.31,129.27,0.68]
[1750609326479,7.7,129.31,129.3,19.30623412]
[1750609329866,7.7,129.31,129.27,0.68]
[1750609330185,7.7,129.31,129.29,19.30623412]
[1750609330863,7.7,129.31,129.3,19.30623412]
[1750609331873,7.7,129.31,129.29,19.30623412]
[1750609332477,7.7,129.31,129.3,19.30623412]
[1750609333055,7.7,129.31,129.29,19.30623412]
[1750609333245,7.7,129.31,129.3,19.30623412]
[1750609333571,7.7,129.31,129.28,0.68]
[1750609333748,7.7,129.31,129.29,19.30623412]
[1750609334259,7.7,129.31,129.3,19.30623412]
[1750609335177,31.78,129.34,129.3,19.98623412]
[1750609335380,187.58,129.37,129.31,19.32964886]
[1750609335590,39.48,129.37,129.34,19.30623412]
[1750609335879,39.7,129.37,129.34,19.30623412]
[1750609336280,7.7,129.37,129.36,19.30623412]
[1750609336454,7.7,129.37,129.35,19.30623412]
[1750609337167,7.7,129.37,129.34,3.96288164]
[1750609337370,7.7,129.37,129.36,19.30623412]
[1750609338069,7.7,129.37,129.36,19.98623412]
[1750609338279,7.7,129.37,129.36,38.63588298]
[1750609338475,7.7,129.37,129.36,19.30623412]
[1750609338659,7.7,129.37,129.36,19.98623412]
[1750609338861,1.6960285,129.38,129.37,0.68]
[1750609339084,1.6960285,129.38,129.37,21.62043412]
[1750609339356,1.6960285,129.38,129.37,40.27008298]
[1750609339670,1.6960285,129.38,129.37,2.3142]
[1750609339869,1.6960285,129.38,129.37,21.62043412]
[1750609340372,1.6960285,129.38,129.37,40.27008298]
[1750609340968,1.6960285,129.38,129.37,66.27008298]
[1750609341662,1.6960285,129.38,129.37,19.30623412]
[1750609342383,1.6960285,129.38,129.32,0.69]
[1750609342694,1.6960285,129.38,129.25,14.32238645]
[1750609342695,19.30623412,129.34,129.3,19.30623412]
[1750609342886,32.0,129.34,129.29,6.7243]
[1750609343085,32.0,129.34,129.31,19.30623412]
[1750609343460,32.0,129.34,129.32,19.30623412]
[1750609343871,32.0,129.34,129.33,19.30623412]
[1750609344369,32.0,129.34,129.28,49.19391497]
[1750609344370,32.0,129.34,129.28,30.57768085]
[1750609344578,32.0,129.34,129.31,19.30623412]
[1750609344782,32.0,129.34,129.32,19.30623412]
[1750609345079,32.0,129.34,129.29,18.64964886]
[1750609345383,32.0,129.34,129.31,19.30623412]
[1750609345626,19.30623412,129.33,129.28,3.88768085]
[1750609345774,19.30623412,129.33,129.29,19.30623412]
[1750609346101,19.30623412,129.33,129.27,19.30623412]
[1750609346102,19.30623412,129.31,129.27,19.30623412]
[1750609346396,31.98,129.3,129.27,19.30623412]
[1750609346696,31.98,129.3,129.25,0.69]
[1750609346871,31.98,129.3,129.26,19.30623412]
[1750609347076,31.98,129.3,129.27,19.30623412]
[1750609347770,51.28623412,129.3,129.26,19.30623412]
[1750609348291,26.0,129.32,129.27,37.95588298]
[1750609348491,31.94,129.31,129.25,26.69]
[1750609348697,51.98623412,129.31,129.26,19.30623412]
[1750609348897,19.30623412,129.28,129.23,19.30623412]
[1750609349064,51.24623412,129.27,129.21,18.64964886]
[1750609349267,51.24623412,129.27,129.23,19.30623412]
[1750609349488,31.94,129.27,129.23,19.30623412]
[1750609349675,51.98623412,129.27,129.2,26.0]
[1750609350011,51.98623412,129.27,129.22,19.30623412]
[1750609350513,19.30623412,129.26,129.22,19.30623412]
[1750609350790,20.04623412,129.26,129.22,19.30623412]
[1750609351793,19.30623412,129.24,129.2,19.30623412]
[1750609351969,57.88,129.26,129.19,3.8296478]
[1750609352164,57.88,129.26,129.2,18.64964886]
[1750609352369,77.18623412,129.26,129.22,19.30623412]
[1750609352570,77.92623412,129.26,129.22,19.30623412]
[1750609352795,58.62,129.26,129.22,19.30623412]
[1750609353406,31.88,129.26,129.24,19.30623412]
[1750609353609,7.68,129.28,129.25,19.30623412]
[1750609353906,7.68,129.28,129.27,19.30623412]
[1750609355100,7.68,129.28,129.22,27.60024886]
[1750609355282,7.68,129.28,129.26,19.30623412]
[1750609356097,7.68,129.28,129.27,19.30623412]
[1750609356676,7.68,129.28,129.26,19.30623412]
[1750609357183,7.68,129.28,129.27,19.30623412]
[1750609358900,26.98623412,129.28,129.2,45.99623412]
[1750609359098,19.30623412,129.26,129.2,0.69]
[1750609359303,19.30623412,129.24,129.2,19.30623412]
[1750609359682,52.22623412,129.25,129.2,19.30623412]
[1750609359878,32.18,129.25,129.23,19.30623412]
[1750609360101,32.18,129.25,129.24,19.30623412]
[1750609362583,32.18,129.27,129.24,19.30623412]
[1750609362901,32.16,129.28,129.26,19.30623412]
[1750609364312,32.16,129.28,129.25,19.30623412]
[1750609364525,32.16,129.28,129.22,0.69]
[1750609364695,51.46623412,129.28,129.24,19.30623412]
[1750609365016,32.9,129.28,129.23,19.30623412]
[1750609365312,32.16,129.28,129.24,19.30623412]
[1750609366697,51.46623412,129.28,129.23,19.30623412]
[1750609366904,52.20623412,129.28,129.23,19.30623412]
[1750609367514,19.30623412,129.26,129.22,19.30623412]
[1750609367812,51.44623412,129.25,129.2,0.69]
[1750609368021,51.44623412,129.24,129.2,19.30623412]
[1750609368181,32.14,129.23,129.2,19.30623412]
[1750609368384,32.14,129.23,129.18,18.64964886]
[1750609368613,39.92,129.23,129.2,19.30623412]
[1750609369193,39.92,129.23,129.21,19.30623412]
[1750609369718,39.92,129.23,129.17,26.69]
[1750609369885,39.92,129.23,129.2,19.30623412]
[1750609370211,39.92,129.23,129.19,19.30623412]
[1750609370621,39.92,129.23,129.2,19.30623412]
[1750609370993,39.92,129.23,129.19,19.30623412]
[1750609371506,39.92,129.23,129.2,19.30623412]
[1750609371709,39.92,129.23,129.21,19.30623412]
[1750609371915,32.1,129.24,129.22,19.30623412]
[1750609372303,32.1,129.24,129.21,19.30623412]
[1750609373331,51.40623412,129.24,129.2,19.30623412]
[1750609373833,19.30623412,129.21,129.16,19.30623412]
[1750609374123,19.30623412,129.19,129.14,42.57196712]
[1750609374297,7.78,129.18,129.15,19.30623412]
[1750609374503,32.08,129.17,129.15,19.30623412]
[1750609375106,32.08,129.17,129.14,19.30623412]
[1750609376036,51.38623412,129.17,129.13,19.30623412]
[1750609376227,19.30623412,129.16,129.11,23.22191711]
[1750609376524,19.30623412,129.16,129.08,23.280177]
[1750609376525,0.74,129.16,129.08,23.280177]
[1750609376724,19.30623412,129.15,129.11,19.30623412]
[1750609376906,32.02,129.14,129.11,19.30623412]
[1750609377115,32.02,129.14,129.07,33.2243]
[1750609377321,32.02,129.14,129.11,19.30623412]
[1750609378328,32.02,129.14,129.09,0.73]
[1750609378704,32.02,129.14,129.08,18.64964886]
[1750609378705,19.30623412,129.1,129.02,2.3951]
[1750609378904,19.30623412,129.07,129.03,19.30623412]
[1750609379103,52.12623412,129.06,129.01,19.30623412]
[1750609379326,26.0,129.05,129.0,19.30623412]
[1750609379527,26.0,129.05,128.99,19.30623412]
[1750609379736,19.30623412,129.04,128.99,19.30623412]
[1750609379903,59.18623412,129.03,128.98,19.30623412]
[1750609380109,39.88,129.03,128.99,19.30623412]
[1750609380325,26.0,129.05,129.01,19.30623412]
[1750609380528,26.0,129.05,128.97,30.53752447]
[1750609380529,32.1,129.06,129.04,19.30623412]
[1750609380729,32.1,129.06,129.05,19.30623412]
[1750609380918,32.1,129.06,129.04,19.30623412]
[1750609381121,32.1,129.06,129.01,0.73]
[1750609381319,19.30623412,129.04,129.0,19.30623412]
[1750609381541,32.12,129.03,128.99,19.30623412]
[1750609381717,32.12,129.03,128.97,4.53752447]
[1750609381718,32.12,129.03,129.02,19.30623412]
[1750609382040,32.14,129.09,129.03,18.64964886]
[1750609382340,51.48623412,129.09,129.04,19.30623412]
[1750609382711,32.18,129.09,129.06,19.30623412]
[1750609383039,32.18,129.09,129.08,19.30623412]
[1750609383342,7.9,129.1,129.08,28.1298775]
[1750609383512,7.9,129.1,129.09,28.1298775]
[1750609384812,7.9,129.1,129.05,45.37964886]
[1750609385128,7.9,129.1,129.08,28.1298775]
[1750609385718,7.9,129.1,129.05,0.73]
[1750609385915,36.0298775,129.1,129.06,28.1298775]
[1750609386119,7.9,129.1,129.07,28.1298775]
[1750609387836,36.0298775,129.1,129.06,28.1298775]
[1750609388037,28.1298775,129.09,129.05,28.1298775]
[1750609388223,32.12,129.08,129.05,28.1298775]
[1750609388926,32.12,129.08,129.06,28.1298775]
[1750609389127,32.12,129.09,129.07,28.1298775]
[1750609389330,32.12,129.09,129.08,28.1298775]
[1750609389638,32.12,129.09,129.05,18.64964886]
[1750609389826,32.12,129.09,129.06,28.1298775]
[1750609391107,32.12,129.09,129.07,28.1298775]
[1750609391620,32.12,129.09,129.03,19.37964886]
[1750609391621,32.12,129.09,129.08,28.1298775]
[1750609391840,32.12,129.09,129.07,28.1298775]
[1750609392339,32.12,129.09,129.08,28.1298775]
[1750609394124,32.12,129.09,129.06,28.1298775]
[1750609394321,32.12,129.09,129.07,28.1298775]
[1750609394624,32.12,129.09,129.08,28.1298775]
[1750609395226,32.12,129.09,129.05,0.73]
[1750609395441,32.12,129.09,129.08,28.1298775]
[1750609395820,32.12,129.09,129.07,28.1298775]
[1750609396020,32.12,129.09,129.06,28.1298775]
[1750609396219,60.2498775,129.09,129.02,0.73]
[1750609396426,32.86,129.09,129.02,0.73]
[1750609396745,28.1298775,129.06,129.02,28.1298775]
[1750609396912,60.2098775,129.05,129.0,28.1298775]
[1750609397117,7.9,129.04,129.0,28.1298775]
[1750609397522,7.9,129.04,129.01,28.1298775]